[Event "*** Titled Tuesday Blitz"]
[Site "Chess.com"]
[Date "2020.11.24"]
[Round "9"]
[White "Loy_Konstantin"]
[Black "bazar-wokzal"]
[Result "0-1"]
[WhiteElo "2381"]
[BlackElo "2525"]
[TimeControl "180+1"]
[EndTime "12:01:57 PST"]
[Termination "bazar-wokzal won on time"]

1. e4 {[%clk 0:02:58.3]} 1... c5 {[%clk 0:02:59.7]} 2. Nf3 {[%clk 0:02:58.1]}
2... d6 {[%clk 0:02:59.8]} 3. d4 {[%clk 0:02:58.1]} 3... cxd4 {[%clk 0:03:00.1]}
4. Qxd4 {[%clk 0:02:59]} 4... e5 {[%clk 0:02:59.5]} 5. Bb5+ {[%clk 0:02:58.2]}
5... Nd7 {[%clk 0:02:59]} 6. Qd3 {[%clk 0:02:57.7]} 6... a6 {[%clk 0:02:59.4]}
7. Bxd7+ {[%clk 0:02:56.8]} 7... Bxd7 {[%clk 0:02:59.8]} 8. O-O {[%clk
0:02:57.2]} 8... Rc8 {[%clk 0:02:58.7]} 9. Nc3 {[%clk 0:02:39.2]} 9... h6 {[%clk
0:02:53.2]} 10. Rd1 {[%clk 0:02:35.9]} 10... Nf6 {[%clk 0:02:52.3]} 11. b3
{[%clk 0:02:19.6]} 11... Qc7 {[%clk 0:02:51.7]} 12. Nd5 {[%clk 0:02:10.4]} 12...
Nxd5 {[%clk 0:02:50.8]} 13. Qxd5 {[%clk 0:02:11.3]} 13... Be6 {[%clk 0:02:48.6]}
14. Qd3 {[%clk 0:02:00.7]} 14... Qxc2 {[%clk 0:02:46.8]} 15. Ba3 {[%clk
0:01:57.6]} 15... Qxd3 {[%clk 0:02:43.6]} 16. Rxd3 {[%clk 0:01:58.5]} 16... Rc6
{[%clk 0:01:51.9]} 17. Rad1 {[%clk 0:01:56.9]} 17... f6 {[%clk 0:01:39.7]} 18.
Bxd6 {[%clk 0:01:31.1]} 18... Bxd6 {[%clk 0:01:39.1]} 19. Rxd6 {[%clk 0:01:32]}
19... Rxd6 {[%clk 0:01:39.3]} 20. Rxd6 {[%clk 0:01:32.3]} 20... Ke7 {[%clk
0:01:39.9]} 21. Rb6 {[%clk 0:01:23.6]} 21... Bc8 {[%clk 0:01:39.6]} 22. Kf1
{[%clk 0:01:16.3]} 22... Rd8 {[%clk 0:01:36.4]} 23. Ke2 {[%clk 0:01:15.8]} 23...
Kd7 {[%clk 0:01:36.4]} 24. Rb4 {[%clk 0:01:06.7]} 24... b5 {[%clk 0:01:36.2]}
25. a4 {[%clk 0:00:45.3]} 25... Kc6 {[%clk 0:01:35.8]} 26. axb5+ {[%clk
0:00:45]} 26... axb5 {[%clk 0:01:35.7]} 27. Ne1 {[%clk 0:00:29.5]} 27... Kc5
{[%clk 0:01:34.8]} 28. Nc2 {[%clk 0:00:29]} 28... Be6 {[%clk 0:01:28]} 29. g3
{[%clk 0:00:18.9]} 29... g5 {[%clk 0:01:23]} 30. f3 {[%clk 0:00:14.2]} 30... Ra8
{[%clk 0:01:15.8]} 31. Kd3 {[%clk 0:00:12.1]} 31... Ra2 {[%clk 0:01:13]} 0-1

[Event "*** Titled Tuesday Blitz"]
[Site "Chess.com"]
[Date "2020.11.24"]
[Round "9"]
[White "sboshaon21"]
[Black "oykuince"]
[Result "1-0"]
[WhiteElo "2094"]
[BlackElo "1942"]
[TimeControl "180+1"]
[EndTime "12:02:03 PST"]
[Termination "sboshaon21 won by resignation"]

1. d4 {[%clk 0:03:00.9]} 1... Nf6 {[%clk 0:02:59.1]} 2. c4 {[%clk 0:03:01.1]}
2... e6 {[%clk 0:02:58.8]} 3. Nf3 {[%clk 0:02:58.3]} 3... b6 {[%clk 0:02:57.2]}
4. Nc3 {[%clk 0:02:58]} 4... Bb4 {[%clk 0:02:56.3]} 5. Qc2 {[%clk 0:02:54.8]}
5... Bb7 {[%clk 0:02:55.5]} 6. Bg5 {[%clk 0:02:52.2]} 6... O-O {[%clk
0:02:45.3]} 7. e3 {[%clk 0:02:49.1]} 7... h6 {[%clk 0:02:44.5]} 8. Bh4 {[%clk
0:02:48.4]} 8... d6 {[%clk 0:02:41.5]} 9. Be2 {[%clk 0:02:48.2]} 9... Nbd7
{[%clk 0:02:40.4]} 10. O-O {[%clk 0:02:47.7]} 10... Bxc3 {[%clk 0:02:37.8]} 11.
Qxc3 {[%clk 0:02:45]} 11... g5 {[%clk 0:02:36.5]} 12. Bg3 {[%clk 0:02:44]} 12...
Ne4 {[%clk 0:02:35.9]} 13. Qc2 {[%clk 0:02:44.3]} 13... f5 {[%clk 0:02:32.9]}
14. Nd2 {[%clk 0:02:36.1]} 14... Nxg3 {[%clk 0:02:29.7]} 15. hxg3 {[%clk
0:02:33.4]} 15... g4 {[%clk 0:02:11.8]} 16. e4 {[%clk 0:02:28.7]} 16... Qg5
{[%clk 0:02:10]} 17. exf5 {[%clk 0:02:16.3]} 17... exf5 {[%clk 0:02:07.3]} 18.
Bd3 {[%clk 0:02:12.5]} 18... Rae8 {[%clk 0:01:38]} 19. Rae1 {[%clk 0:02:10.1]}
19... Rxe1 {[%clk 0:01:35]} 20. Rxe1 {[%clk 0:02:11]} 20... h5 {[%clk
0:01:35.5]} 21. Re6 {[%clk 0:01:57.7]} 21... d5 {[%clk 0:01:09.3]} 22. b3 {[%clk
0:01:46.2]} 22... c5 {[%clk 0:00:35.1]} 23. dxc5 {[%clk 0:01:13.6]} 23... Nxc5
{[%clk 0:00:33.3]} 24. Re5 {[%clk 0:01:13.2]} 24... Nxd3 {[%clk 0:00:29.5]} 25.
Qxd3 {[%clk 0:01:14.1]} 25... dxc4 {[%clk 0:00:28.6]} 26. Qxc4+ {[%clk
0:01:00.4]} 26... Kh8 {[%clk 0:00:21.6]} 27. Nf1 {[%clk 0:00:56.9]} 27... Be4
{[%clk 0:00:18.3]} 28. Qc7 {[%clk 0:00:52.6]} 28... Qc1 {[%clk 0:00:14.4]} 29.
Qxc1 {[%clk 0:00:51.5]} 1-0

[Event "*** Titled Tuesday Blitz"]
[Site "Chess.com"]
[Date "2020.11.24"]
[Round "9"]
[White "AsaHoffmann"]
[Black "pastouche06"]
[Result "0-1"]
[WhiteElo "2389"]
[BlackElo "2524"]
[TimeControl "180+1"]
[EndTime "12:02:11 PST"]
[Termination "pastouche06 won by resignation"]

1. d4 {[%clk 0:02:56.6]} 1... d5 {[%clk 0:02:58.8]} 2. Bg5 {[%clk 0:02:54.2]}
2... f6 {[%clk 0:02:53.1]} 3. Bf4 {[%clk 0:02:53.3]} 3... c5 {[%clk 0:02:47.9]}
4. e3 {[%clk 0:02:52]} 4... Nc6 {[%clk 0:02:42.1]} 5. Nf3 {[%clk 0:02:47.1]}
5... Bg4 {[%clk 0:02:41.4]} 6. Bb5 {[%clk 0:02:45.4]} 6... Qb6 {[%clk
0:02:25.6]} 7. Nc3 {[%clk 0:02:44.5]} 7... e6 {[%clk 0:02:18]} 8. O-O {[%clk
0:02:37.4]} 8... cxd4 {[%clk 0:02:07.8]} 9. exd4 {[%clk 0:02:33.9]} 9... Bb4
{[%clk 0:01:56.1]} 10. Rb1 {[%clk 0:02:22.5]} 10... a6 {[%clk 0:01:28.8]} 11.
Bxc6+ {[%clk 0:02:16.7]} 11... Qxc6 {[%clk 0:01:25]} 12. h3 {[%clk 0:02:16]}
12... Bh5 {[%clk 0:01:23.6]} 13. g4 {[%clk 0:02:12.6]} 13... Bf7 {[%clk
0:01:21.7]} 14. Ne2 {[%clk 0:02:10.7]} 14... Ne7 {[%clk 0:01:20.2]} 15. c3
{[%clk 0:02:10.1]} 15... Bd6 {[%clk 0:01:20.1]} 16. Qd2 {[%clk 0:02:09.1]} 16...
O-O {[%clk 0:01:19.1]} 17. Rfe1 {[%clk 0:02:08.8]} 17... Ng6 {[%clk 0:01:17.8]}
18. Bxd6 {[%clk 0:02:04.5]} 18... Qxd6 {[%clk 0:01:18.7]} 19. Kg2 {[%clk
0:02:03.5]} 19... e5 {[%clk 0:01:16.9]} 20. Ng3 {[%clk 0:01:51.6]} 20... e4
{[%clk 0:01:07.9]} 21. Ng1 {[%clk 0:01:40.2]} 21... Be6 {[%clk 0:01:00.8]} 22.
Qe3 {[%clk 0:01:26.2]} 22... f5 {[%clk 0:00:54.3]} 23. gxf5 {[%clk 0:01:21.5]}
23... Bxf5 {[%clk 0:00:55.2]} 24. Nxf5 {[%clk 0:01:14.1]} 24... Rxf5 {[%clk
0:00:56.1]} 25. Qg3 {[%clk 0:01:13.8]} 25... Qf6 {[%clk 0:00:49.9]} 26. Kh1
{[%clk 0:00:57]} 26... Rxf2 {[%clk 0:00:46.3]} 27. Ne2 {[%clk 0:00:53]} 27...
Rf8 {[%clk 0:00:42]} 28. Ng1 {[%clk 0:00:46.9]} 28... Nh4 {[%clk 0:00:35]} 29.
Rbd1 {[%clk 0:00:44.5]} 29... Rg2 {[%clk 0:00:32]} 30. Qxg2 {[%clk 0:00:42.6]}
30... Nxg2 {[%clk 0:00:31.3]} 31. Kxg2 {[%clk 0:00:42.5]} 31... Qf2+ {[%clk
0:00:30.6]} 32. Kh1 {[%clk 0:00:42.3]} 32... Qxb2 {[%clk 0:00:30.5]} 33. c4
{[%clk 0:00:40.8]} 33... Rf2 {[%clk 0:00:28.7]} 0-1

[Event "*** Titled Tuesday Blitz"]
[Site "Chess.com"]
[Date "2020.11.24"]
[Round "9"]
[White "annamaja"]
[Black "FearNoEvil12"]
[Result "0-1"]
[WhiteElo "2271"]
[BlackElo "2161"]
[TimeControl "180+1"]
[EndTime "12:02:12 PST"]
[Termination "FearNoEvil12 won on time"]

1. e4 {[%clk 0:03:00.9]} 1... a6 {[%clk 0:02:59.6]} 2. d4 {[%clk 0:02:58.1]}
2... b5 {[%clk 0:02:59.9]} 3. a4 {[%clk 0:02:47]} 3... b4 {[%clk 0:02:57.6]} 4.
Bc4 {[%clk 0:02:44.7]} 4... e6 {[%clk 0:02:55.4]} 5. e5 {[%clk 0:02:43.4]} 5...
Bb7 {[%clk 0:02:54.4]} 6. Nf3 {[%clk 0:02:42.8]} 6... Ne7 {[%clk 0:02:54.5]} 7.
O-O {[%clk 0:02:38]} 7... Nd5 {[%clk 0:02:54.3]} 8. c3 {[%clk 0:02:35.2]} 8...
bxc3 {[%clk 0:02:53]} 9. bxc3 {[%clk 0:02:36.1]} 9... d6 {[%clk 0:02:52]} 10.
exd6 {[%clk 0:02:28.1]} 10... cxd6 {[%clk 0:02:50.9]} 11. Qb3 {[%clk 0:02:25.8]}
11... Qc8 {[%clk 0:02:42.4]} 12. Nbd2 {[%clk 0:02:14.4]} 12... Be7 {[%clk
0:02:40.1]} 13. Rb1 {[%clk 0:01:34.5]} 13... Bc6 {[%clk 0:02:38.5]} 14. a5
{[%clk 0:01:33.1]} 14... Nd7 {[%clk 0:02:37.1]} 15. Re1 {[%clk 0:01:29.6]} 15...
O-O {[%clk 0:02:34.6]} 16. Ne4 {[%clk 0:01:22.4]} 16... Rb8 {[%clk 0:02:32.1]}
17. Qc2 {[%clk 0:01:20.1]} 17... Rxb1 {[%clk 0:02:30.1]} 18. Qxb1 {[%clk
0:01:19.1]} 18... Qc7 {[%clk 0:02:27.8]} 19. Qd3 {[%clk 0:01:16.3]} 19... Qxa5
{[%clk 0:02:12.4]} 20. Bd2 {[%clk 0:01:08.1]} 20... N5f6 {[%clk 0:02:08.5]} 21.
Nxf6+ {[%clk 0:01:06.3]} 21... Nxf6 {[%clk 0:02:07.7]} 22. Bxa6 {[%clk
0:01:04.5]} 22... Qc7 {[%clk 0:01:57.9]} 23. h3 {[%clk 0:00:58.3]} 23... Ra8
{[%clk 0:01:56.2]} 24. Bb5 {[%clk 0:00:49.9]} 24... Bb7 {[%clk 0:01:54.8]} 25.
c4 {[%clk 0:00:46.6]} 25... Rb8 {[%clk 0:01:49]} 26. Ra1 {[%clk 0:00:43]} 26...
h6 {[%clk 0:01:46.8]} 27. Ba5 {[%clk 0:00:40.7]} 27... Qc8 {[%clk 0:01:44.5]}
28. Nd2 {[%clk 0:00:29]} 28... Bc6 {[%clk 0:01:41.2]} 29. Bxc6 {[%clk
0:00:26.1]} 29... Qxc6 {[%clk 0:01:42.1]} 30. Rb1 {[%clk 0:00:24.1]} 30... Rxb1+
{[%clk 0:01:39.6]} 31. Qxb1 {[%clk 0:00:25]} 31... Qa4 {[%clk 0:01:35.9]} 32.
Bc3 {[%clk 0:00:22.8]} 32... Qc6 {[%clk 0:01:25.9]} 33. Qb8+ {[%clk 0:00:16.4]}
33... Kh7 {[%clk 0:01:24]} 34. Qa7 {[%clk 0:00:16.8]} 34... Qd7 {[%clk
0:01:20.6]} 35. Qxd7 {[%clk 0:00:14.3]} 35... Nxd7 {[%clk 0:01:21.5]} 36. Ne4
{[%clk 0:00:12.7]} 36... f5 {[%clk 0:01:20.2]} 37. Nd2 {[%clk 0:00:11.3]} 37...
Bf6 {[%clk 0:01:20.1]} 38. Nf3 {[%clk 0:00:10.9]} 38... Nb6 {[%clk 0:01:18.9]}
39. c5 {[%clk 0:00:05.3]} 39... Nd5 {[%clk 0:01:18.7]} 40. Bb4 {[%clk
0:00:03.4]} 40... Nxb4 {[%clk 0:01:17.3]} 41. cxd6 {[%clk 0:00:01.1]} 41... Kg8
{[%clk 0:01:14.7]} 0-1

[Event "*** Titled Tuesday Blitz"]
[Site "Chess.com"]
[Date "2020.11.24"]
[Round "9"]
[White "Aradej"]
[Black "Savagelittlemole"]
[Result "1-0"]
[WhiteElo "2457"]
[BlackElo "2554"]
[TimeControl "180+1"]
[EndTime "12:02:14 PST"]
[Termination "Aradej won by resignation"]

1. d4 {[%clk 0:03:00.9]} 1... Nf6 {[%clk 0:02:59.8]} 2. Nf3 {[%clk 0:02:59.9]}
2... e6 {[%clk 0:02:57]} 3. e3 {[%clk 0:02:59.5]} 3... c5 {[%clk 0:02:56.4]} 4.
Bd3 {[%clk 0:02:59.5]} 4... Nc6 {[%clk 0:02:53.3]} 5. O-O {[%clk 0:02:59.2]}
5... Be7 {[%clk 0:02:50]} 6. c3 {[%clk 0:02:57.9]} 6... O-O {[%clk 0:02:48.7]}
7. e4 {[%clk 0:02:57.1]} 7... b6 {[%clk 0:02:37.8]} 8. a3 {[%clk 0:02:55.4]}
8... Bb7 {[%clk 0:02:37.5]} 9. Re1 {[%clk 0:02:55.5]} 9... Rc8 {[%clk
0:02:25.7]} 10. Nbd2 {[%clk 0:02:55.3]} 10... cxd4 {[%clk 0:02:25.3]} 11. cxd4
{[%clk 0:02:55.1]} 11... Re8 {[%clk 0:02:13.6]} 12. b4 {[%clk 0:02:53.8]} 12...
Bf8 {[%clk 0:02:06.7]} 13. Bb2 {[%clk 0:02:53.6]} 13... d5 {[%clk 0:02:02.5]}
14. e5 {[%clk 0:02:53.2]} 14... Nd7 {[%clk 0:01:52.4]} 15. Qe2 {[%clk
0:02:52.2]} 15... f6 {[%clk 0:01:47.9]} 16. exf6 {[%clk 0:02:49.6]} 16... Nxf6
{[%clk 0:01:42.4]} 17. Rac1 {[%clk 0:02:49.3]} 17... h6 {[%clk 0:01:25]} 18. Bb1
{[%clk 0:02:46.7]} 18... Ne7 {[%clk 0:01:15.8]} 19. Rxc8 {[%clk 0:02:43.4]}
19... Qxc8 {[%clk 0:01:09.5]} 20. Qxe6+ {[%clk 0:02:41.6]} 20... Qxe6 {[%clk
0:01:09.6]} 21. Rxe6 {[%clk 0:02:42.1]} 21... Rc8 {[%clk 0:00:46.6]} 22. Re1
{[%clk 0:02:36.8]} 22... a5 {[%clk 0:00:42.9]} 23. b5 {[%clk 0:02:34.8]} 23...
Rc7 {[%clk 0:00:40]} 24. a4 {[%clk 0:02:32.9]} 24... Bc8 {[%clk 0:00:39.2]} 25.
Rc1 {[%clk 0:02:30.8]} 25... Rxc1+ {[%clk 0:00:38.6]} 26. Bxc1 {[%clk 0:02:31]}
26... Bf5 {[%clk 0:00:38.2]} 27. Ba2 {[%clk 0:02:29.2]} 27... Kh7 {[%clk
0:00:32.9]} 28. Bb3 {[%clk 0:02:28.9]} 28... Ng6 {[%clk 0:00:29.3]} 29. g3
{[%clk 0:02:28]} 29... Bb4 {[%clk 0:00:26.1]} 30. Kf1 {[%clk 0:02:25.4]} 30...
Bd3+ {[%clk 0:00:25.4]} 31. Ke1 {[%clk 0:02:23.5]} 31... Ne7 {[%clk 0:00:19.8]}
32. Kd1 {[%clk 0:02:22.4]} 32... Nf5 {[%clk 0:00:16.7]} 33. Bc2 {[%clk
0:02:21.2]} 33... Be4 {[%clk 0:00:14]} 34. Nxe4 {[%clk 0:02:14]} 34... dxe4
{[%clk 0:00:13.5]} 35. Nd2 {[%clk 0:02:13.5]} 35... Bxd2 {[%clk 0:00:12.3]} 36.
Bxd2 {[%clk 0:02:12]} 36... Nxd4 {[%clk 0:00:12.6]} 37. Bb1 {[%clk 0:02:09.7]}
37... Nf3 {[%clk 0:00:11.1]} 38. Be3 {[%clk 0:02:09.5]} 38... Nxh2 {[%clk
0:00:10.8]} 39. Bxb6 {[%clk 0:02:08.9]} 39... Nhg4 {[%clk 0:00:10]} 40. Ke2
{[%clk 0:02:09]} 40... Kg6 {[%clk 0:00:08.8]} 41. Bxa5 {[%clk 0:02:09.1]} 41...
Ne5 {[%clk 0:00:07.7]} 42. Bc3 {[%clk 0:02:08.1]} 42... Nc4 {[%clk 0:00:07.4]}
43. a5 {[%clk 0:02:07.3]} 43... Kf5 {[%clk 0:00:05.9]} 44. Bxf6 {[%clk
0:02:06.8]} 44... gxf6 {[%clk 0:00:05.9]} 45. a6 {[%clk 0:02:06.6]} 45... Ke5
{[%clk 0:00:04.3]} 46. Ba2 {[%clk 0:02:01.1]} 46... Nb6 {[%clk 0:00:04.2]} 47.
Bf7 {[%clk 0:02:01.1]} 47... Kd6 {[%clk 0:00:03.5]} 48. Ke3 {[%clk 0:02:00.6]}
48... Ke5 {[%clk 0:00:04]} 49. Be8 {[%clk 0:01:59.7]} 49... f5 {[%clk 0:00:03]}
50. Bc6 {[%clk 0:01:59.4]} 50... Nc4+ {[%clk 0:00:03.2]} 51. Ke2 {[%clk
0:01:58.7]} 51... Kd6 {[%clk 0:00:02.5]} 52. a7 {[%clk 0:01:58.9]} 52... Nb6
{[%clk 0:00:03]} 53. a8=Q {[%clk 0:01:58.7]} 53... Nxa8 {[%clk 0:00:03.3]} 54.
Bxa8 {[%clk 0:01:58.8]} 54... Kc5 {[%clk 0:00:03.9]} 55. Bc6 {[%clk 0:01:58.5]}
55... h5 {[%clk 0:00:03.4]} 56. Ke3 {[%clk 0:01:58.4]} 56... Kb6 {[%clk
0:00:03]} 57. Kf4 {[%clk 0:01:58]} 1-0

[Event "*** Titled Tuesday Blitz"]
[Site "Chess.com"]
[Date "2020.11.24"]
[Round "9"]
[White "rududuyk"]
[Black "eCztery"]
[Result "1-0"]
[WhiteElo "2196"]
[BlackElo "2335"]
[TimeControl "180+1"]
[EndTime "12:02:14 PST"]
[Termination "rududuyk won on time"]

1. e4 {[%clk 0:02:50]} 1... e5 {[%clk 0:02:55.4]} 2. Nf3 {[%clk 0:02:49.3]} 2...
Nc6 {[%clk 0:02:54]} 3. Bb5 {[%clk 0:02:49.8]} 3... a6 {[%clk 0:02:51.6]} 4. Ba4
{[%clk 0:02:50.2]} 4... b5 {[%clk 0:02:51]} 5. Bb3 {[%clk 0:02:47.9]} 5... Nf6
{[%clk 0:02:51.1]} 6. d4 {[%clk 0:02:41.9]} 6... exd4 {[%clk 0:02:18.4]} 7. O-O
{[%clk 0:02:21.5]} 7... Nxe4 {[%clk 0:01:47.5]} 8. Nxd4 {[%clk 0:02:12.4]} 8...
Nxd4 {[%clk 0:01:31.4]} 9. Qxd4 {[%clk 0:02:11]} 9... Nf6 {[%clk 0:01:31.7]} 10.
Bg5 {[%clk 0:01:54.8]} 10... Be7 {[%clk 0:01:31.5]} 11. Bxf6 {[%clk 0:01:54.1]}
11... Bxf6 {[%clk 0:01:23.1]} 12. Re1+ {[%clk 0:01:50.7]} 12... Be7 {[%clk
0:01:04.7]} 13. Qd5 {[%clk 0:01:47.2]} 13... O-O {[%clk 0:00:57.8]} 14. Qxa8
{[%clk 0:01:46.2]} 14... c6 {[%clk 0:00:52.3]} 15. a4 {[%clk 0:01:42.1]} 15...
Bc5 {[%clk 0:00:46.4]} 16. axb5 {[%clk 0:01:34.1]} 16... Qb6 {[%clk 0:00:12.1]}
17. Nc3 {[%clk 0:00:53.3]} 17... Bb7 {[%clk 0:00:10.4]} 18. Rxa6 {[%clk
0:00:51.3]} 18... Bxf2+ {[%clk 0:00:02.9]} 19. Kf1 {[%clk 0:00:49.8]} 19... Rxa8
{[%clk 0:00:03.5]} 20. Rxb6 {[%clk 0:00:49]} 20... Bxb6 {[%clk 0:00:02.3]} 21.
Re7 {[%clk 0:00:37.1]} 21... cxb5 {[%clk 0:00:01]} 22. Rxf7 {[%clk 0:00:34.5]}
1-0

[Event "*** Titled Tuesday Blitz"]
[Site "Chess.com"]
[Date "2020.11.24"]
[Round "9"]
[White "sasko1234"]
[Black "Zubrrr"]
[Result "1/2-1/2"]
[WhiteElo "2477"]
[BlackElo "2636"]
[TimeControl "180+1"]
[EndTime "12:02:16 PST"]
[Termination "Game drawn by repetition"]

1. Nf3 {[%clk 0:03:00.9]} 1... f5 {[%clk 0:02:56.8]} 2. d4 {[%clk 0:02:58]} 2...
Nf6 {[%clk 0:02:56.8]} 3. Bf4 {[%clk 0:02:57]} 3... d6 {[%clk 0:02:56.7]} 4. e3
{[%clk 0:02:56.9]} 4... g6 {[%clk 0:02:57.2]} 5. Be2 {[%clk 0:02:56.9]} 5... Bg7
{[%clk 0:02:57.7]} 6. h4 {[%clk 0:02:55.9]} 6... h6 {[%clk 0:02:56.5]} 7. Nbd2
{[%clk 0:02:54]} 7... Nc6 {[%clk 0:02:54.7]} 8. c3 {[%clk 0:02:53.5]} 8... e6
{[%clk 0:02:53.2]} 9. Qb3 {[%clk 0:02:49.1]} 9... Qe7 {[%clk 0:02:51.7]} 10.
O-O-O {[%clk 0:02:40.3]} 10... Ng4 {[%clk 0:02:47.7]} 11. Bg3 {[%clk 0:02:35]}
11... O-O {[%clk 0:02:44.1]} 12. Ne1 {[%clk 0:02:26]} 12... Kh8 {[%clk
0:02:32.8]} 13. Nd3 {[%clk 0:02:24]} 13... e5 {[%clk 0:02:31.4]} 14. Bxg4 {[%clk
0:02:12.4]} 14... fxg4 {[%clk 0:02:31.1]} 15. dxe5 {[%clk 0:02:11.4]} 15... Bf5
{[%clk 0:02:17]} 16. exd6 {[%clk 0:02:03.5]} 16... cxd6 {[%clk 0:02:17.9]} 17.
Nf4 {[%clk 0:02:01]} 17... Ne5 {[%clk 0:02:03.6]} 18. Nc4 {[%clk 0:01:55.5]}
18... Nxc4 {[%clk 0:01:53.5]} 19. Qxc4 {[%clk 0:01:53.7]} 19... Rac8 {[%clk
0:01:54.1]} 20. Qb3 {[%clk 0:01:46.2]} 20... Qe4 {[%clk 0:01:52]} 21. Rd3 {[%clk
0:01:30.6]} 21... Rc6 {[%clk 0:01:45.7]} 22. Rhd1 {[%clk 0:01:23.3]} 22... Rfc8
{[%clk 0:01:40.5]} 23. Qd5 {[%clk 0:01:00.7]} 23... Qa4 {[%clk 0:01:22.6]} 24.
a3 {[%clk 0:00:57.8]} 24... b5 {[%clk 0:00:40.7]} 25. Qf7 {[%clk 0:00:49.1]}
25... Qe4 {[%clk 0:00:29.9]} 26. Qd5 {[%clk 0:00:36.1]} 26... Qa4 {[%clk
0:00:28.6]} 27. Qf7 {[%clk 0:00:34.8]} 27... Qe4 {[%clk 0:00:16.7]} 28. Qd5
{[%clk 0:00:33.7]} 28... Qa4 {[%clk 0:00:14.7]} 1/2-1/2

[Event "*** Titled Tuesday Blitz"]
[Site "Chess.com"]
[Date "2020.11.24"]
[Round "9"]
[White "ShapkinAnatoliy"]
[Black "GM_LOADING"]
[Result "1-0"]
[WhiteElo "2649"]
[BlackElo "2484"]
[TimeControl "180+1"]
[EndTime "12:02:19 PST"]
[Termination "ShapkinAnatoliy won by resignation"]

1. d4 {[%clk 0:03:00.9]} 1... Nf6 {[%clk 0:02:47.7]} 2. c4 {[%clk 0:03:01.4]}
2... e6 {[%clk 0:02:45.4]} 3. g3 {[%clk 0:03:01.6]} 3... Bb4+ {[%clk 0:02:45.6]}
4. Bd2 {[%clk 0:03:01.7]} 4... a5 {[%clk 0:02:46.1]} 5. Bg2 {[%clk 0:03:01.7]}
5... d6 {[%clk 0:02:42.4]} 6. e3 {[%clk 0:03:02.2]} 6... O-O {[%clk 0:02:41.6]}
7. Ne2 {[%clk 0:03:02.4]} 7... Bxd2+ {[%clk 0:02:42.2]} 8. Qxd2 {[%clk
0:03:02.2]} 8... Nc6 {[%clk 0:02:41.7]} 9. O-O {[%clk 0:03:02.2]} 9... e5 {[%clk
0:02:42.3]} 10. Nbc3 {[%clk 0:03:02.8]} 10... Bf5 {[%clk 0:02:39.5]} 11. e4
{[%clk 0:02:43.2]} 11... Bg4 {[%clk 0:02:33.8]} 12. f3 {[%clk 0:02:40.7]} 12...
Bd7 {[%clk 0:02:31.9]} 13. h3 {[%clk 0:02:27.6]} 13... Re8 {[%clk 0:02:22.6]}
14. f4 {[%clk 0:02:20.7]} 14... exd4 {[%clk 0:02:18.4]} 15. Nxd4 {[%clk
0:02:19]} 15... Nxd4 {[%clk 0:02:10.6]} 16. Qxd4 {[%clk 0:02:19.9]} 16... Bc6
{[%clk 0:02:11.2]} 17. g4 {[%clk 0:02:11.5]} 17... Nd7 {[%clk 0:02:04.4]} 18.
Rae1 {[%clk 0:02:04.2]} 18... Nc5 {[%clk 0:02:00.6]} 19. Nd5 {[%clk 0:01:53.9]}
19... Bxd5 {[%clk 0:01:54.8]} 20. cxd5 {[%clk 0:01:54.8]} 20... Qh4 {[%clk
0:01:53.1]} 21. e5 {[%clk 0:01:37.1]} 21... b6 {[%clk 0:01:32.2]} 22. e6 {[%clk
0:01:31]} 22... Qf6 {[%clk 0:01:29]} 23. Qxf6 {[%clk 0:01:21.6]} 23... gxf6
{[%clk 0:01:24.9]} 24. f5 {[%clk 0:01:22.5]} 24... Kg7 {[%clk 0:01:20.5]} 25.
Re3 {[%clk 0:01:16.8]} 25... a4 {[%clk 0:01:17]} 26. Rf4 {[%clk 0:01:03.1]}
26... Ra5 {[%clk 0:01:12.6]} 27. Bf1 {[%clk 0:00:51.6]} 27... Kf8 {[%clk
0:00:48.6]} 28. Rb4 {[%clk 0:00:40.4]} 28... h5 {[%clk 0:00:41.6]} 29. Bb5
{[%clk 0:00:37.8]} 29... Re7 {[%clk 0:00:36.6]} 30. Bc6 {[%clk 0:00:35.3]} 30...
hxg4 {[%clk 0:00:35.8]} 31. hxg4 {[%clk 0:00:34.5]} 31... Kg7 {[%clk 0:00:36]}
32. Rh3 {[%clk 0:00:30.4]} 32... Nd3 {[%clk 0:00:33.4]} 33. Rxd3 {[%clk
0:00:29.7]} 1-0